bitfinex/quotes_BTCUSD_20251221
["timestamp","ask_amount","ask_price","bid_price","bid_amount"]
[1766323130446,0.34701,88346.0,88328.0,0.00572]
[1766323130654,0.70961,88345.0,88328.0,0.00572]
[1766323130858,0.00572,88344.0,88328.0,0.00572]
[1766323131227,0.00572,88344.0,88329.0,0.09510708]
[1766323133576,0.00572,88344.0,88329.0,0.09520708]
[1766323133800,0.34701,88343.0,88329.0,0.09520708]
[1766323134064,0.34701,88342.0,88329.0,0.09520708]
[1766323134269,0.34701,88342.0,88329.0,0.0001]
[1766323134873,0.34701,88340.0,88329.0,0.0001]
[1766323136372,0.00572,88344.0,88329.0,0.0001]
[1766323136594,0.00572,88344.0,88329.0,0.1207]
[1766323138419,0.35273,88344.0,88329.0,0.1207]
[1766323139295,0.34701,88343.0,88329.0,0.0001]
[1766323139510,0.34701,88340.0,88329.0,0.0001]
[1766323139696,0.34701,88339.0,88329.0,0.0001]
[1766323141828,0.00572,88338.0,88329.0,0.0001]
[1766323143443,0.34701,88336.0,88329.0,0.0001]
[1766323143645,0.00572,88338.0,88329.0,0.0001]
[1766323144238,0.34701,88346.0,88329.0,0.0001]
[1766323144438,0.34701,88346.0,88329.0,0.11783]
[1766323144790,0.00572,88345.0,88329.0,0.11783]
[1766323144967,0.34701,88346.0,88329.0,0.11783]
[1766323145166,0.00572,88344.0,88331.0,0.00024679]
[1766323145991,0.34639,88343.0,88331.0,0.00024679]
[1766323146178,0.68618,88342.0,88331.0,0.00024679]
[1766323147896,0.34639,88362.0,88338.0,0.11635]
[1766323148083,0.09510708,88361.0,88340.0,0.11635]
[1766323148277,0.00572,88360.0,88340.0,0.11645752]
[1766323148499,0.00572,88360.0,88352.0,0.0001]
[1766323148709,0.09510708,88361.0,88352.0,0.0001]
[1766323148906,0.00572,88360.0,88342.0,0.11635]
[1766323149493,0.00572,88360.0,88343.0,0.12966341]
[1766323149690,0.09510708,88361.0,88343.0,0.12966341]
[1766323149914,0.00572,88360.0,88343.0,0.12966341]
[1766323150118,0.00572,88360.0,88343.0,0.11608]
[1766323152034,0.35211,88360.0,88343.0,0.11608]
[1766323152616,0.00572,88359.0,88343.0,0.11608]
[1766323153038,0.00572,88359.0,88340.0,0.00010752]
[1766323153039,0.09510708,88369.0,88345.0,0.11464]
[1766323153240,0.00572,88368.0,88347.0,0.11464]
[1766323154030,0.68618,88367.0,88347.0,0.11464]
[1766323154652,0.00572,88368.0,88347.0,0.11464]
[1766323154866,0.00572,88367.0,88347.0,0.11464]
[1766323155391,0.35211,88367.0,88347.0,0.11464]
[1766323155756,0.34639,88365.0,88347.0,0.11464]
[1766323155952,0.68618,88363.0,88347.0,0.11464]
[1766323156153,0.34639,88362.0,88347.0,0.11464]
[1766323156394,0.34551,88361.0,88346.0,0.11928]
[1766323156975,0.00572,88361.0,88346.0,0.11928]
[1766323157193,0.00562,88361.0,88346.0,0.11928]
[1766323157376,0.00572,88361.0,88346.0,0.11928]
[1766323158304,0.33979,88369.0,88346.0,0.11928]
[1766323158512,0.0001,88372.0,88346.0,0.00572]
[1766323158513,0.00572,88368.0,88346.0,0.00572]
[1766323158713,0.0001,88372.0,88347.0,0.10712]
[1766323158890,0.00572,88371.0,88347.0,0.10712]
[1766323159093,0.0001,88372.0,88347.0,0.10712]
[1766323159300,0.00572,88371.0,88347.0,0.10712]
[1766323159463,0.0001,88372.0,88349.0,0.09510708]
[1766323159661,0.03002816,88389.0,88349.0,0.09510708]
[1766323159662,0.00572,88375.0,88349.0,0.09510708]
[1766323159977,0.00572,88377.0,88351.0,0.09519]
[1766323160178,0.00572,88377.0,88353.0,0.09519]
[1766323160994,0.33979,88389.0,88355.0,0.09567]
[1766323161192,0.00572,88388.0,88355.0,0.09567]
[1766323162383,0.00572,88388.0,88352.0,0.00572]
[1766323162384,0.00247,88388.0,88365.0,0.09510708]
[1766323162585,0.00247,88388.0,88366.0,0.10106]
[1766323163378,0.00247,88388.0,88378.0,0.0001]
[1766323164377,0.68618,88387.0,88372.0,0.00408333]
[1766323164583,0.68628766,88387.0,88372.0,0.00363433]
[1766323167957,0.00010766,88387.0,88371.0,0.00572]
[1766323168162,0.00010766,88387.0,88359.0,0.09364]
[1766323168163,0.00055,88371.0,88365.0,0.00572]
[1766323168719,0.71978,88380.0,88365.0,0.00572]
[1766323170170,0.34543,88376.0,88365.0,0.00572]
[1766323170464,0.37435,88375.0,88362.0,0.00572]
[1766323172303,0.37435,88375.0,88359.0,0.09364]
[1766323172458,0.34543,88375.0,88359.0,0.09364]
[1766323172659,0.34543,88371.0,88357.0,0.00572]
[1766323172847,0.37435,88370.0,88357.0,0.00572]
[1766323176192,0.69157,88386.0,88370.0,0.000549]
[1766323176368,0.00572,88385.0,88371.0,0.09116]
[1766323176771,0.00572,88384.0,88371.0,0.09116]
[1766323177191,0.34514,88386.0,88371.0,0.09116]
[1766323177374,0.00572,88385.0,88373.0,0.09082]
[1766323178506,0.0001,88382.0,88373.0,0.09082]
[1766323180992,0.0001,88382.0,88372.0,0.00572]
[1766323181161,0.0001,88382.0,88372.0,0.09518]
[1766323182320,0.00342325,88385.0,88372.0,0.09518]
[1766323182508,0.34347057,88386.0,88372.0,0.09518]
[1766323183534,0.35225766,88387.0,88372.0,0.07244017]
[1766323183748,0.35225766,88387.0,88372.0,0.03249655]
[1766323183953,0.35225766,88387.0,88372.0,0.00562]
[1766323184112,0.35225766,88387.0,88372.0,2e-05]
[1766323185317,0.34514,88395.0,88372.0,2e-05]
[1766323185660,0.00572,88394.0,88372.0,2e-05]
[1766323185976,0.35086,88394.0,88372.0,2e-05]
[1766323188724,0.69729,88394.0,88372.0,2e-05]
[1766323189059,0.35215,88394.0,88372.0,2e-05]
[1766323189210,0.34514,88393.0,88372.0,2e-05]
[1766323191319,0.35215,88394.0,88372.0,2e-05]
[1766323192353,0.34514,88390.0,88372.0,2e-05]
[1766323192555,0.69157,88390.0,88372.0,2e-05]
[1766323193686,0.0001,88383.0,88372.0,2e-05]
[1766323197283,0.0001,88383.0,88369.0,0.00088027]
[1766323198453,0.0001,88383.0,88369.0,0.00562]
[1766323198659,0.0001,88383.0,88368.0,0.00562]
[1766323198892,0.0001,88383.0,88367.0,0.00562]
[1766323199091,0.0001,88383.0,88367.0,2e-05]
[1766323200981,0.00572,88382.0,88353.0,0.00472141]
[1766323201184,0.69157,88381.0,88353.0,0.00411189]
[1766323201374,0.34643,88381.0,88353.0,0.00411189]
[1766323201747,0.34514,88379.0,88353.0,0.00411189]
[1766323202110,0.34514,88379.0,88354.0,2e-05]
[1766323202313,0.34514,88376.0,88354.0,2e-05]
[1766323204063,0.34643,88374.0,88354.0,2e-05]
[1766323204395,0.69157,88374.0,88354.0,2e-05]
[1766323205042,0.69262,88374.0,88354.0,2e-05]
[1766323205422,0.00572,88375.0,88354.0,2e-05]
[1766323205722,0.34619,88379.0,88354.0,2e-05]
[1766323205926,0.7,88378.0,88354.0,2e-05]
[1766323206104,0.34619,88377.0,88354.0,2e-05]
[1766323208721,0.34619,88376.0,88354.0,2e-05]
[1766323208915,0.34809,88375.0,88354.0,2e-05]
[1766323209122,0.69428,88374.0,88354.0,2e-05]
[1766323209346,0.09510708,88375.0,88354.0,2e-05]
[1766323209755,0.44129708,88375.0,88354.0,2e-05]
[1766323211894,0.34809,88376.0,88354.0,2e-05]
[1766323212693,0.34809,88376.0,88355.0,7.374e-05]
[1766323213074,0.0001,88383.0,88376.0,0.000549]
[1766323213482,0.00572,88386.0,88367.0,0.00572]
[1766323213687,0.00572,88386.0,88368.0,0.09510708]
[1766323214111,0.34654879,88395.0,88368.0,0.09510708]
[1766323214112,0.00572,88388.0,88369.0,0.01357942]
[1766323214314,0.00572,88388.0,88368.0,0.09510708]
[1766323214512,0.00572,88388.0,88368.0,0.08370708]
[1766323214767,0.00072705,88388.0,88368.0,0.08370708]
[1766323214984,0.00542043,88388.0,88368.0,0.08370708]
[1766323215505,0.00542043,88388.0,88368.0,0.07232314]
[1766323215712,0.00542043,88388.0,88368.0,0.04377149]
[1766323215920,0.00542043,88388.0,88368.0,0.00951983]
[1766323216131,0.00542043,88388.0,88369.0,2e-05]
[1766323216331,0.00542043,88388.0,88353.0,0.01358188]
[1766323216332,0.00542043,88388.0,88370.0,2e-05]
[1766323216887,0.34809,88393.0,88370.0,2e-05]
[1766323217037,0.00035879,88395.0,88370.0,2e-05]
[1766323217238,0.00572,88394.0,88371.0,0.08259413]
[1766323217518,0.00572,88394.0,88371.0,0.06094078]
[1766323218277,0.00035879,88395.0,88371.0,0.06094078]
[1766323218442,0.00572,88393.0,88371.0,0.06094078]
[1766323218644,0.00572,88395.0,88371.0,0.06094078]
[1766323219084,0.00089771,88405.0,88395.0,0.000549]
[1766323219285,0.00572,88403.0,88395.0,0.000549]
[1766323219691,0.00572,88404.0,88385.0,0.00572]
[1766323221123,0.00089771,88405.0,88385.0,0.00572]
[1766323221350,0.00661771,88405.0,88385.0,0.00572]
[1766323221668,0.00661771,88405.0,88396.0,0.09510708]
[1766323223119,0.34809,88414.0,88397.0,0.01357512]
[1766323223331,0.00010757,88414.0,88396.0,0.09510708]
[1766323223969,0.00572,88419.0,88396.0,0.09510708]
[1766323224112,0.00572,88419.0,88396.0,0.09521465]
[1766323224850,0.00572,88418.0,88396.0,0.09521465]
[1766323225351,0.69428,88422.0,88396.0,0.09521465]
[1766323225517,0.00572,88418.0,88396.0,0.09521465]
[1766323226180,0.06264995,88433.0,88397.0,0.05885512]
[1766323226181,0.0004,88433.0,88397.0,0.05885512]
[1766323226301,0.0004,88454.0,88418.0,0.000549]
[1766323226502,0.3636,88453.0,88432.0,0.09510708]
[1766323226821,0.35384,88453.0,88433.0,0.00572]
[1766323227024,0.0004,88454.0,88433.0,0.00572]
[1766323227645,0.00050757,88454.0,88433.0,0.00572]
[1766323228426,0.00050757,88454.0,88432.0,0.09510708]
[1766323228427,0.35384,88453.0,88432.0,0.09510708]
[1766323228626,0.00050757,88454.0,88434.0,0.00572]
[1766323228627,0.3636,88450.0,88434.0,0.00572]
[1766323228787,0.00050757,88454.0,88429.0,0.00572]
[1766323228788,0.3636,88444.0,88429.0,0.00572]
[1766323228985,0.3636,88440.0,88431.0,0.09510708]
[1766323229519,0.36329908,88440.0,88431.0,0.09510708]
[1766323229724,0.00572,88445.0,88431.0,0.09510708]
[1766323230327,0.00050757,88454.0,88431.0,0.09510708]
[1766323230487,0.00622757,88454.0,88445.0,0.000549]
[1766323230694,0.35384,88453.0,88445.0,0.000549]
[1766323230906,0.35384,88453.0,88431.0,0.09510708]
[1766323231487,0.35384,88452.0,88431.0,0.09510708]
[1766323231834,0.3636,88451.0,88431.0,0.09510708]
[1766323231987,0.00622757,88454.0,88431.0,0.09510708]
[1766323232194,0.00622757,88454.0,88406.0,0.1461]
[1766323232195,0.00622757,88454.0,88427.0,0.00568]
[1766323232467,0.71744,88453.0,88427.0,0.00568]
[1766323232587,0.00622757,88454.0,88427.0,0.00568]
[1766323232792,0.71744,88453.0,88426.0,0.00568]
[1766323232986,0.00622757,88454.0,88426.0,0.00568]
[1766323233200,0.00622757,88454.0,88409.0,0.04528]
[1766323233201,0.09510708,88450.0,88409.0,0.04528]
[1766323233435,0.71744,88448.0,88413.0,0.09510708]
[1766323233633,0.05096,88447.0,88413.0,0.09510708]
[1766323233996,0.71744,88446.0,88413.0,0.09510708]
[1766323235070,0.67546,88446.0,88413.0,0.09510708]
[1766323235430,0.05096,88447.0,88413.0,0.09510708]
[1766323235613,0.67546,88446.0,88413.0,0.09510708]
[1766323236020,0.05096,88447.0,88410.0,0.00568]
[1766323236216,0.00030206,88446.0,88414.0,0.09510708]
[1766323236436,0.67546,88445.0,88414.0,0.09510708]
[1766323236638,0.00030206,88446.0,88414.0,0.09510708]
[1766323237039,0.67546,88445.0,88414.0,0.09510708]
[1766323237239,0.00030206,88446.0,88414.0,0.09510708]
[1766323237443,0.33412,88444.0,88414.0,0.09510708]
[1766323237785,0.34134,88445.0,88414.0,0.09510708]
[1766323237786,0.33412,88442.0,88414.0,0.09510708]
[1766323237906,0.33412,88442.0,88415.0,0.09510708]
[1766323239554,0.33412,88438.0,88415.0,0.09510708]
[1766323239755,0.34134,88435.0,88415.0,0.09510708]
[1766323240060,0.33412,88430.0,88415.0,0.09510708]
[1766323240283,0.34134,88427.0,88415.0,0.09510708]
[1766323240485,0.34134,88425.0,88415.0,0.09510708]
[1766323241181,0.34134,88423.0,88415.0,0.09510708]
[1766323241386,0.00568,88422.0,88415.0,0.09510708]
[1766323242449,0.33412,88421.0,88407.0,0.00568]
[1766323242795,0.34134,88416.0,88401.0,0.00568]
[1766323242950,0.340791,88416.0,88401.0,0.00578757]
[1766323243859,0.346471,88416.0,88401.0,0.00578757]
[1766323244458,0.00568,88419.0,88410.0,0.09510708]
[1766323244659,0.33412,88427.0,88410.0,0.09510708]
[1766323244660,0.00568,88420.0,88410.0,0.09510708]
[1766323245199,0.00030206,88419.0,88410.0,0.09510708]
[1766323245564,0.34134,88418.0,88410.0,0.09510708]
[1766323245803,0.00030206,88419.0,88401.0,0.00010757]
[1766323245804,0.34134,88414.0,88401.0,0.00010757]
[1766323245968,0.33412,88409.0,88401.0,5.7e-07]
[1766323246173,0.34134,88406.0,88401.0,5.7e-07]
[1766323246852,0.33412,88406.0,88401.0,5.7e-07]
[1766323247069,0.34134,88405.0,88401.0,5.7e-07]
[1766323247278,0.34134,88404.0,88401.0,5.7e-07]
[1766323248173,0.341234,88404.0,88401.0,5.7e-07]
[1766323249115,0.00030206,88403.0,88401.0,5.7e-07]
[1766323251639,6e-08,88403.0,88401.0,5.7e-07]
[1766323253149,0.00568006,88403.0,88401.0,5.7e-07]
[1766323254254,6e-08,88403.0,88401.0,5.7e-07]
[1766323258999,0.34134006,88403.0,88401.0,5.7e-07]
[1766323260709,0.77056708,88402.0,88401.0,5.7e-07]
[1766323262037,0.42922708,88402.0,88401.0,5.7e-07]
[1766323262740,0.77056708,88402.0,88401.0,5.7e-07]
[1766323265825,0.35408,88412.0,88401.0,5.7e-07]
[1766323266035,0.05096,88411.0,88401.0,5.7e-07]
[1766323266237,0.00568,88410.0,88401.0,5.7e-07]
[1766323266828,0.32923,88409.0,88401.0,5.7e-07]
[1766323267145,0.68331,88409.0,88401.0,5.7e-07]
[1766323267494,0.00568,88408.0,88401.0,5.7e-07]
[1766323267655,0.00568,88407.0,88401.0,5.7e-07]
[1766323268274,0.0001,88413.0,88401.0,5.7e-07]
[1766323268275,0.0001,88413.0,88407.0,0.000248]
[1766323268478,0.00568,88412.0,88401.0,5.7e-07]
[1766323268908,0.32923,88424.0,88401.0,5.7e-07]
[1766323269103,0.09510708,88436.0,88401.0,5.7e-07]
[1766323269104,0.35408,88430.0,88401.0,5.7e-07]
[1766323269270,0.32923,88433.0,88402.0,0.09510708]
[1766323269472,0.00568,88432.0,88402.0,0.09510708]
[1766323269672,0.00568,88431.0,88402.0,0.09510708]
[1766323270057,0.44918708,88436.0,88402.0,0.09510708]
[1766323270258,0.00568,88435.0,88403.0,0.01357419]
[1766323270481,0.32923,88441.0,88435.0,0.000248]
[1766323270681,0.00568,88440.0,88414.0,0.00568]
[1766323271697,0.00578757,88440.0,88414.0,0.00568]
[1766323271897,0.03397664,88459.0,88440.0,0.000248]
[1766323272233,0.35408,88452.0,88418.0,0.04528]
[1766323272423,0.00568,88449.0,88418.0,0.04538757]
[1766323273203,0.35408,88458.0,88430.0,0.09510708]
[1766323273403,0.00568,88455.0,88431.0,0.00568]
[1766323274402,0.00568,88461.0,88431.0,0.00568]
[1766323274821,0.00568,88461.0,88445.0,0.09510708]
[1766323275432,0.00568,88461.0,88434.0,0.04528]
[1766323275875,0.35408,88459.0,88434.0,0.04528]
[1766323276755,0.32923,88460.0,88434.0,0.04528]
[1766323276952,0.00568,88460.0,88434.0,0.04528]
[1766323277809,0.00208594,88462.0,88434.0,0.04528]
[1766323278023,0.00208594,88462.0,88444.0,0.09510708]
[1766323278238,0.00208594,88462.0,88444.0,0.10078708]
[1766323282996,0.00568,88466.0,88444.0,0.10078708]
[1766323284849,0.35976,88466.0,88444.0,0.10078708]
[1766323285430,0.00568,88465.0,88444.0,0.10078708]
[1766323285627,0.00568,88465.0,88444.0,0.00568]
[1766323286314,0.67876,88464.0,88444.0,0.00568]
[1766323286533,0.00568,88465.0,88444.0,0.00568]
[1766323286693,0.34633,88463.0,88444.0,0.00568]
[1766323287351,0.34633,88462.0,88444.0,0.00568]
[1766323287543,0.00568,88463.0,88445.0,0.09510708]
[1766323287755,0.67876,88462.0,88444.0,0.00568]
[1766323288116,0.34633,88453.0,88444.0,0.00568]
[1766323288911,0.33243,88452.0,88434.0,0.04528]
[1766323289129,0.34633,88450.0,88436.0,0.00568]
[1766323294226,0.33243,88451.0,88436.0,0.00568]
[1766323295289,0.00568,88454.0,88451.0,0.000549]
[1766323295862,0.00568,88454.0,88436.0,0.00568]
[1766323296186,0.00568,88454.0,88436.0,0.00578755]
[1766323297970,0.6457,88451.0,88436.0,0.00578755]
[1766323298690,0.00568,88454.0,88436.0,0.00578755]
[1766323301412,0.33277,88453.0,88436.0,0.00578755]
[1766323303832,0.33277,88452.0,88436.0,0.00578755]
[1766323304427,0.00568,88454.0,88436.0,0.00578755]
[1766323304428,0.33277,88446.0,88436.0,0.00578755]
[1766323304612,0.33277,88444.0,88436.0,0.00578755]
[1766323304821,0.00568,88454.0,88444.0,0.001099]
[1766323305456,0.00568,88454.0,88438.0,0.09510708]
[1766323306157,0.00568,88454.0,88436.0,0.00010755]
[1766323306364,0.31293,88453.0,88437.0,0.00568]
[1766323306916,0.31293,88449.0,88437.0,0.00568]
[1766323307123,0.33277,88446.0,88437.0,0.00568]
[1766323307246,0.6457,88446.0,88437.0,0.00568]
[1766323307901,0.6457,88444.0,88428.0,0.03386]
[1766323308100,0.33277,88442.0,88428.0,0.00010757]
[1766323308410,0.6457,88442.0,88420.0,0.00568]
[1766323308655,0.6457,88441.0,88420.0,0.00568]
[1766323309022,0.09510708,88431.0,88411.0,0.03956]
[1766323309185,0.33277,88428.0,88411.0,0.00520251]
[1766323309387,0.33277,88428.0,88410.0,1.1e-07]
[1766323309610,0.6457,88428.0,88410.0,1.1e-07]
[1766323310457,0.31293,88424.0,88410.0,1.1e-07]
[1766323310614,0.6457,88421.0,88410.0,1.1e-07]
[1766323311009,0.645151,88421.0,88410.0,1.1e-07]
[1766323311348,0.31293,88421.0,88410.0,1.1e-07]
[1766323312810,0.0001075,88442.0,88410.0,1.1e-07]
[1766323312811,0.00568,88430.0,88410.0,1.1e-07]
[1766323314223,0.6457,88429.0,88410.0,1.1e-07]
[1766323314662,0.33277,88428.0,88410.0,1.1e-07]
[1766323315241,0.00568,88430.0,88410.0,1.1e-07]
[1766323315938,0.0001,88431.0,88410.0,1.1e-07]
[1766323316140,0.00568,88430.0,88410.0,1.1e-07]
[1766323317444,0.31293,88428.0,88410.0,1.1e-07]
[1766323317676,0.31293,88423.0,88410.0,1.1e-07]
[1766323317905,0.33277,88422.0,88410.0,1.1e-07]
[1766323320538,0.31861,88423.0,88410.0,1.1e-07]
[1766323321968,0.00568,88423.0,88410.0,1.1e-07]
[1766323328560,0.0001,88421.0,88410.0,1.1e-07]
[1766323332554,0.0001,88421.0,88408.0,0.00548647]
[1766323332958,0.00404333,88423.0,88408.0,0.00548647]
[1766323333157,0.00568,88427.0,88421.0,0.0001]
[1766323333361,0.00568,88427.0,88408.0,0.00548647]
[1766323334421,0.00568,88427.0,88408.0,0.00568]
[1766323334592,0.00568,88427.0,88404.0,0.09510708]
[1766323334593,0.00568,88427.0,88407.0,0.00568]
[1766323334814,0.00568,88427.0,88404.0,0.09496708]
[1766323334983,0.00568,88427.0,88406.0,3.077e-05]
[1766323335210,0.0001,88431.0,88406.0,0.0136045]
[1766323335565,0.00568,88437.0,88405.0,0.01357389]
[1766323335868,0.00568,88436.0,88407.0,0.03397748]
[1766323336014,0.00568,88436.0,88405.0,0.01343806]
[1766323336216,0.00568,88436.0,88404.0,0.03227356]
[1766323336401,0.00568,88436.0,88405.0,4.18e-06]
[1766323336597,0.00568,88436.0,88404.0,0.04346126]
[1766323336805,0.00568,88436.0,88405.0,0.00568]
[1766323337027,0.00568,88436.0,88406.0,0.00568]
[1766323337239,0.00568,88436.0,88413.0,0.08370708]
[1766323337407,0.00568,88436.0,88413.0,0.0493319]
[1766323337608,0.00568,88436.0,88413.0,0.04854484]
[1766323340532,0.00568,88436.0,88414.0,0.00568]
[1766323341954,0.31306,88455.0,88436.0,0.00055]
[1766323342283,0.00568,88454.0,88436.0,0.00055]
[1766323342441,0.00568,88454.0,88431.0,0.00568]
[1766323342637,0.00568,88454.0,88431.0,0.0057875]
[1766323345844,0.34004,88450.0,88431.0,0.0001075]
[1766323346042,0.0004415,88431.0,88421.0,0.5067]
[1766323346273,0.0001075,88431.0,88415.0,0.00568]
[1766323347827,0.0001075,88431.0,88414.0,0.00568]
[1766323348208,0.0001075,88431.0,88406.0,0.06102569]
[1766323348209,0.34004,88430.0,88406.0,0.06102569]
[1766323348369,0.01696276,88429.0,88407.0,0.00568]
[1766323348569,0.11206984,88429.0,88407.0,0.00568]
[1766323348761,0.6586,88428.0,88407.0,0.00568]
[1766323348995,0.6586,88426.0,88407.0,0.00568]
[1766323349285,0.34004,88424.0,88407.0,0.00568]
[1766323349489,0.00568,88430.0,88424.0,0.000658]
[1766323349807,0.00568,88430.0,88401.0,0.0001]
[1766323349808,0.31856,88425.0,88404.0,0.00568]
[1766323349959,0.00568,88424.0,88404.0,0.0057875]
[1766323350160,0.00568,88424.0,88417.0,0.09510708]
[1766323350392,0.00568,88424.0,88417.0,0.09400808]
[1766323351392,0.67016736,88423.0,88404.0,0.0057875]
[1766323351572,0.00568,88424.0,88404.0,0.0001075]
[1766323351993,0.04528,88423.0,88404.0,0.0001075]
[1766323352201,0.6586,88421.0,88404.0,0.0001075]
[1766323352360,0.34004,88418.0,88404.0,0.0001075]
[1766323352566,0.01156736,88417.0,88404.0,0.0001075]
[1766323352804,0.00568,88416.0,88404.0,0.0001075]
[1766323353122,0.01156736,88415.0,88404.0,0.0001075]
[1766323353892,0.35160736,88415.0,88404.0,0.0001075]
[1766323354092,0.34004,88414.0,88404.0,0.0001075]
[1766323354292,0.01156736,88413.0,88404.0,0.0001075]
[1766323354522,0.31856,88415.0,88404.0,0.0001075]
[1766323358152,0.36333,88411.0,88393.0,0.0002]
[1766323358360,0.09510708,88412.0,88393.0,0.0002]
[1766323358361,0.33165,88404.0,88393.0,0.0002]
[1766323358583,0.36333,88401.0,88376.0,0.06102569]
[1766323358756,0.36333,88401.0,88376.0,0.00035879]
[1766323360703,0.36333,88397.0,88376.0,0.00035879]
[1766323360831,0.00568,88396.0,88376.0,0.00035879]
[1766323372887,0.004171,88396.0,88380.0,0.09510708]
[1766323373075,0.37693,88404.0,88380.0,0.09510708]
[1766323373076,0.00568,88395.0,88380.0,0.09510708]
[1766323373274,0.04528,88407.0,88381.0,0.01357757]
[1766323373498,0.00568,88406.0,88380.0,0.09510708]
[1766323373697,0.0001,88405.0,88385.0,0.0001]
[1766323374237,0.0001,88405.0,88380.0,0.09196708]
[1766323375198,0.36343,88405.0,88380.0,0.09196708]
[1766323375957,0.0001,88405.0,88380.0,0.09196708]
[1766323376367,0.00568,88404.0,88380.0,0.09196708]
[1766323377727,0.00568,88404.0,88381.0,0.00568]
[1766323378810,0.70654736,88403.0,88381.0,0.00568]
[1766323379034,0.70654736,88403.0,88376.0,0.06706448]
[1766323379035,0.69498,88403.0,88376.0,0.06706448]
[1766323379258,0.37489736,88402.0,88377.0,0.06102569]
[1766323379460,0.36333,88402.0,88376.0,0.06706448]
[1766323379657,0.01156736,88401.0,88376.0,0.06706448]
[1766323380315,0.01156736,88401.0,88377.0,0.06102569]
[1766323380877,0.01156736,88401.0,88376.0,0.00603879]
[1766323381080,0.33165,88397.0,88376.0,0.00603879]
[1766323381277,0.01724736,88396.0,88376.0,0.00603879]
[1766323382565,0.00568,88396.0,88376.0,0.00603879]
[1766323383044,0.00568,88396.0,88376.0,0.06706448]
[1766323384424,0.00568,88396.0,88377.0,0.06102569]
[1766323384649,0.00568,88396.0,88376.0,0.06138448]
[1766323384870,0.00019121,88376.0,88373.0,0.06102569]
[1766323385081,9.518e-05,88377.0,88373.0,0.00010766]
[1766323385230,0.00568,88384.0,88373.0,0.00010766]
[1766323387579,0.31797,88381.0,88373.0,1.166e-05]
[1766323387934,0.00568,88384.0,88348.0,0.1461]
[1766323387935,0.34835,88374.0,88357.0,0.06102569]
[1766323388106,0.00568,88373.0,88356.0,0.06102569]
[1766323388309,0.00568,88373.0,88354.0,0.06102569]
[1766323388488,0.01156736,88372.0,88354.0,0.06102569]
[1766323388666,0.01156736,88372.0,88352.0,0.15613277]
[1766323389152,0.01156736,88372.0,88352.0,0.09510708]
[1766323389958,0.67788736,88372.0,88352.0,0.09510708]
[1766323390157,0.66632,88372.0,88352.0,0.09510708]
[1766323390366,0.00568,88373.0,88352.0,0.09510708]
[1766323390900,0.04528,88392.0,88373.0,0.000549]
[1766323391288,0.00035864,88392.0,88373.0,0.000549]
[1766323391520,0.00035864,88392.0,88380.0,0.09510708]
[1766323391521,6.4e-07,88392.0,88380.0,0.09510708]
[1766323391960,0.00568,88391.0,88380.0,0.09510708]
[1766323392228,0.00064519,88391.0,88380.0,0.09510708]
[1766323392405,0.00568,88392.0,88380.0,0.09510708]
[1766323392661,0.00568,88393.0,88392.0,0.00055]
[1766323392851,0.00578746,88393.0,88380.0,0.09510708]
[1766323393182,0.00010746,88393.0,88380.0,0.09510708]
[1766323393425,4.6e-07,88393.0,88380.0,0.09510708]
[1766323393857,4.6e-07,88393.0,88381.0,0.00568]
[1766323395852,0.0001,88405.0,88381.0,0.00568]
[1766323396047,0.0001,88405.0,88381.0,0.00603864]
[1766323400409,0.31797,88403.0,88381.0,0.00603864]
[1766323400609,0.34835,88422.0,88381.0,0.00603864]
[1766323400917,0.09510708,88417.0,88381.0,0.00603864]
[1766323401483,0.34835,88422.0,88395.0,0.08940708]
[1766323401484,0.05096,88416.0,88395.0,0.08940708]
[1766323401630,0.05096,88416.0,88395.0,0.04933542]
[1766323401856,0.05096,88416.0,88395.0,0.02075564]
[1766323402037,0.05096,88416.0,88393.0,0.00568]
[1766323402948,0.34835,88415.0,88393.0,0.00568]
[1766323403521,0.0001,88405.0,88393.0,0.00568]
[1766323404942,0.66599,88425.0,88394.0,0.06649764]
[1766323405140,0.49408708,88424.0,88394.0,0.03232181]
[1766323405362,0.67496,88423.0,88393.0,0.00562874]
[1766323405546,0.67496,88423.0,88395.0,0.09266122]
[1766323405770,0.05096,88422.0,88395.0,0.0526895]
[1766323405965,0.72592,88422.0,88395.0,0.02980971]
[1766323406166,0.72592,88422.0,88393.0,0.00556361]
[1766323406348,0.72592,88422.0,88393.0,0.00436446]
[1766323406779,0.3779,88422.0,88393.0,0.00436446]
[1766323407908,0.32694,88420.0,88393.0,0.00436446]
[1766323408067,0.34802,88419.0,88393.0,0.00436446]
[1766323408677,0.67496,88417.0,88393.0,0.00436446]
[1766323408878,0.34802,88415.0,88393.0,0.00436446]
[1766323409306,0.32694,88413.0,88393.0,0.00415846]
[1766323410270,0.34802,88405.0,88386.0,0.1461]
[1766323410469,0.00568,88404.0,88386.0,0.1461]
[1766323410684,0.00568,88404.0,88385.0,0.0001]
[1766323411098,0.00568,88404.0,88383.0,0.00551]
[1766323412754,0.00568,88406.0,88383.0,0.00551]
[1766323413940,0.03399003,88428.0,88384.0,0.01357711]
[1766323414142,0.34802,88422.0,88383.0,0.00551]
[1766323414439,0.67496,88421.0,88383.0,0.00551]
[1766323414630,0.05096,88423.0,88383.0,0.00551]
[1766323415031,0.00568,88422.0,88383.0,0.00551]
[1766323415350,0.39224,88428.0,88394.0,0.05848943]
[1766323415557,0.00568,88426.0,88395.0,0.00568]
[1766323415874,0.00568,88426.0,88396.0,3.216e-05]
[1766323417936,0.00568,88426.0,88396.0,0.03958022]
[1766323418133,0.00568,88425.0,88396.0,0.03950022]
[1766323418339,0.00568,88425.0,88397.0,0.01357512]
[1766323418536,0.0001,88406.0,88396.0,0.01072094]
[1766323418795,0.00568,88425.0,88397.0,0.01357512]
[1766323418991,0.00568,88425.0,88397.0,0.01925512]
[1766323420179,0.00568,88425.0,88397.0,0.08028081]
[1766323421234,0.00568,88425.0,88398.0,0.06102569]
[1766323424077,0.00568,88424.0,88399.0,0.06102569]
[1766323424336,0.00568,88423.0,88399.0,0.06102569]
[1766323424780,0.00568,88423.0,88408.0,0.10406122]
[1766323425956,0.00578757,88423.0,88408.0,0.10406122]
[1766323426476,0.00010757,88423.0,88408.0,0.10406122]